bitfinex-derivatives/quotes_ETHF0:USTF0_20240910
["timestamp","ask_amount","ask_price","bid_price","bid_amount"]
[1725978384596,2.31107392,2332.9,2332.7,0.42865]
[1725978385185,0.42864,2332.8,2332.7,0.42865]
[1725978385389,1.54277392,2332.8,2332.6,3.10867]
[1725978385586,1.11413392,2332.8,2332.6,2.68]
[1725978385885,2.41986625,2332.9,2332.7,0.42866]
[1725978385886,1.88243392,2332.9,2332.7,0.42866]
[1725978386089,1.11413392,2332.8,2332.7,0.42866]
[1725978386281,1.88243392,2332.9,2332.7,0.42866]
[1725978386488,0.42864,2332.8,2332.7,0.42866]
[1725978386992,1.54277392,2332.8,2332.7,0.42866]
[1725978387178,1.88243392,2332.9,2332.7,0.42866]
[1725978387381,1.54278392,2332.8,2332.6,2.68]
[1725978387581,0.42865,2332.8,2332.6,2.68]
[1725978387791,1.54278392,2332.8,2332.7,0.42866]
[1725978388197,2.31106392,2332.9,2332.7,0.42866]
[1725978388386,0.42864,2332.8,2332.7,0.42866]
[1725978388585,2.31106392,2332.9,2332.8,0.42864]
[1725978388994,2.31106392,2332.9,2332.6,3.10867]
[1725978388995,1.88243392,2332.9,2332.6,3.10867]
[1725978389300,1.11413392,2332.8,2332.6,3.10867]
[1725978389591,0.42866,2332.7,2332.6,3.10868]
[1725978389893,1.54278392,2332.8,2332.7,0.42866]
[1725978390191,3.96263017,2332.9,2332.6,2.68]
[1725978390492,1.54278392,2332.8,2332.7,0.42866]
[1725978390687,1.11413392,2332.8,2332.7,0.42866]
[1725978390887,0.42866,2332.7,2332.6,3.10867]
[1725978391390,2.18576392,2332.8,2332.4,2.68]
[1725978391687,0.4287,2332.5,2332.4,0.42871]
[1725978391889,0.42871,2332.5,2332.4,0.42871]
[1725978392188,1.54282392,2332.6,2332.2,3.28631866]
[1725978392407,1.54282392,2332.6,2332.5,0.4287]
[1725978392889,1.11413392,2332.6,2332.5,0.4287]
[1725978393081,2.97038834,2332.9,2332.4,2.68]
[1725978393082,1.11413392,2332.8,2332.4,2.68]
[1725978393282,1.88243392,2332.9,2332.8,0.42864]
[1725978393589,2.20208834,2333.1,2333.0,0.42861]
[1725978393590,1.11413392,2333.1,2333.0,0.42861]
[1725978393783,1.11413392,2333.2,2333.1,0.42859]
[1725978393983,1.11413392,2333.2,2333.0,2.68]
[1725978393984,1.11413392,2333.3,2333.2,0.42857]
[1725978394181,0.42857,2333.2,2333.0,3.10859]
[1725978394384,1.54269392,2333.3,2333.1,0.42857]
[1725978394585,1.54268392,2333.3,2333.2,0.42857]
[1725978394781,1.11413392,2333.3,2333.2,0.42857]
[1725978395292,1.65156625,2333.4,2333.2,2.68]
[1725978395293,1.54267392,2333.4,2333.2,2.68]
[1725978395491,1.11413392,2333.4,2333.2,0.42856]
[1725978395788,1.54243737,2333.4,2333.2,0.42856]
[1725978396187,1.11389737,2333.4,2333.0,2.68]
[1725978396493,2.41326625,2333.5,2332.9,0.3897]
[1725978396494,1.11389737,2333.2,2332.9,0.3897]
[1725978396696,1.11389737,2333.1,2332.9,0.3897]
[1725978396993,1.11389737,2333.1,2332.7,3.10865]
[1725978396994,0.42863,2332.9,2332.7,3.10865]
[1725978397292,0.42863,2332.9,2332.6,1.11042013]
[1725978397293,0.42864,2332.9,2332.5,3.79042013]
[1725978397490,0.42864,2332.8,2332.6,1.09870282]
[1725978397685,0.42864,2332.8,2332.6,0.42868]
[1725978397686,1.54255737,2332.8,2332.6,0.42868]
[1725978397890,1.54255737,2332.7,2332.5,3.10869]
[1725978398194,1.11389737,2332.8,2332.7,0.42866]
[1725978398588,1.91472737,2332.9,2332.7,0.42866]
[1725978399392,1.91472737,2332.9,2332.7,0.42865]
[1725978399593,1.91472737,2332.9,2332.6,2.68]
[1725978399594,1.48609737,2332.9,2332.6,2.68]
[1725978399797,2.02376625,2332.9,2332.8,0.42864]
[1725978399989,1.65156625,2332.9,2332.8,3.10864]
[1725978400296,1.50155762,2333.0,2332.9,0.42862]
[1725978400595,1.11335762,2333.0,2332.9,0.42862]
[1725978401591,1.11335762,2333.1,2333.0,0.42861]
[1725978401792,1.11335762,2333.1,2333.0,3.10861]
[1725978401999,1.11335762,2333.2,2333.1,0.42859]
[1725978403398,2.02376625,2333.3,2333.2,0.42857]
[1725978403399,1.11335762,2333.3,2333.2,0.42857]
[1725978403696,1.11335762,2333.3,2332.9,0.7897]
[1725978404002,1.54191762,2333.3,2333.1,0.42857]
[1725978404192,1.54191762,2333.3,2332.9,3.4697]
[1725978404193,1.54191762,2333.3,2333.2,0.42857]
[1725978405099,1.54191762,2333.3,2332.9,3.4697]
[1725978405100,1.11335762,2333.3,2332.9,3.4697]
[1725978405301,1.54191762,2333.3,2333.2,0.42857]
[1725978405496,1.11335762,2333.3,2333.2,0.42857]
[1725978406292,1.11335762,2333.3,2332.9,3.4697]
[1725978406491,1.54191762,2333.3,2333.2,0.42857]
[1725978407101,1.11335762,2333.3,2333.2,0.42857]
[1725978407296,1.54190762,2333.3,2333.2,0.42857]
[1725978407703,1.11335762,2333.3,2333.2,0.42857]
[1725978408206,1.54190762,2333.3,2333.2,0.42857]
[1725978408604,1.54191762,2333.3,2333.2,0.42857]
[1725978408898,5.93716625,2333.3,2332.9,3.4697]
[1725978409101,1.11347443,2333.2,2333.1,0.42858]
[1725978409993,1.11347443,2333.3,2333.2,0.42857]
[1725978410296,1.11347443,2333.4,2333.3,0.42855]
[1725978410502,1.65156625,2333.5,2333.4,0.42853]
[1725978410503,1.11347443,2333.5,2333.4,0.42853]
[1725978410701,1.11347443,2333.7,2333.4,6.02680938]
[1725978410911,1.11347443,2333.8,2333.7,0.42848]
[1725978411204,1.11347443,2333.8,2333.7,3.10848]
[1725978411804,1.11347443,2333.9,2333.8,0.42846]
[1725978412007,1.11347443,2334.0,2333.9,0.42844]
[1725978412205,1.65156625,2334.1,2334.0,0.42842]
[1725978412602,2.76504068,2334.2,2334.0,0.4284]
[1725978412798,2.76504068,2334.2,2334.1,2.68]
[1725978413204,1.11347443,2334.2,2334.1,2.68]
[1725978413805,1.11347443,2334.2,2333.9,2.68]
[1725978414202,1.11347443,2334.2,2333.9,3.10844]
[1725978414407,1.11347443,2334.2,2334.1,2.68]
[1725978414897,2.02196625,2334.3,2334.1,2.68]
[1725978415812,1.65156625,2334.3,2334.1,3.1084]
[1725978416011,1.65156625,2334.3,2334.1,3.10839]
[1725978416405,1.65156625,2334.3,2334.2,4.71239]
[1725978416607,1.65156625,2334.3,2334.2,5.86909]
[1725978416807,2.88713252,2334.9,2334.8,0.42828]
[1725978417008,3.85365459,2335.0,2334.9,0.42826]
[1725978417304,3.63293178,2335.1,2335.0,5.78125]
[1725978417504,5.50366473,2335.3,2335.1,0.42822]
[1725978417717,5.50366473,2335.3,2335.1,4.71062]
[1725978417902,5.50366473,2335.3,2335.1,10.71062]
[1725978418699,5.50366473,2335.3,2335.0,2.68]
[1725978418898,2.68,2335.8,2335.0,3.10823]
[1725978419105,2.68,2335.8,2335.0,2.68]
[1725978419106,3.78742942,2335.8,2335.0,2.68]
[1725978419405,0.42819,2335.3,2335.0,2.68]
[1725978419612,3.78742942,2335.8,2335.0,2.68]
[1725978419613,2.68,2335.8,2335.0,3.32434456]
[1725978419818,0.42818,2335.4,2335.0,3.32434456]
[1725978420114,0.42818,2335.4,2335.0,0.64434456]
[1725978420304,3.67270736,2335.9,2335.0,0.21611456]
[1725978420503,0.3871,2335.3,2334.7,0.7588]
[1725978420710,0.7547,2335.2,2334.3,3.29]
[1725978420913,0.42825,2335.0,2334.5,0.42832]
[1725978421213,0.42829,2334.8,2334.4,0.21718549]
[1725978421406,0.42828,2334.8,2334.4,0.21718549]
[1725978421601,1.82522,2335.2,2334.4,0.21718549]
[1725978421602,0.4283,2334.7,2334.4,0.21718549]
[1725978421807,0.4283,2334.7,2334.3,3.6652]
[1725978422011,0.42829,2334.8,2334.3,3.88409899]
[1725978422318,0.42831,2334.6,2334.3,0.3752]
[1725978422612,11.67317055,2335.1,2334.4,0.21382276]
[1725978422914,0.7547,2335.2,2334.3,0.21159522]
[1725978422915,0.42836,2334.4,2334.3,0.21159522]
[1725978423216,0.42832,2334.6,2334.3,0.21159522]
[1725978423715,0.42832,2334.6,2334.2,0.42839]
[1725978423912,0.42833,2334.5,2334.1,0.8036]
[1725978424108,0.42835,2334.4,2334.1,0.3752]
[1725978424306,0.782,2334.4,2334.0,0.42841]
[1725978424612,0.782,2334.4,2333.8,3.6688]
[1725978424808,0.782,2334.4,2333.9,0.21125493]
[1725978425012,0.782,2334.4,2333.7,0.83158]
[1725978425215,0.3697,2334.3,2333.7,0.4031]
[1725978426111,0.42844,2334.0,2333.7,0.4031]
[1725978426318,0.3697,2334.3,2333.7,0.4031]
[1725978426506,1.07097,2334.2,2333.5,3.69]
[1725978426707,1.07097,2334.2,2333.5,4.11851]
[1725978427020,1.07097,2334.2,2333.5,0.82851]
[1725978427310,0.42845,2333.9,2333.5,0.82851]
[1725978427513,0.42847,2333.8,2333.5,0.4]
[1725978427712,0.42846,2333.9,2333.5,0.4]
[1725978428019,0.42847,2333.8,2333.5,0.4]
[1725978428412,0.42845,2333.9,2333.5,0.82851]
[1725978429415,0.42849,2333.7,2333.3,0.79994]
[1725978429816,0.3663,2333.9,2333.3,0.79994]
[1725978430015,0.3663,2333.9,2333.3,0.3714]
[1725978430016,0.81487,2333.8,2333.3,0.3714]
[1725978430217,0.81487,2333.8,2333.4,0.83332]
[1725978430417,0.3864,2333.8,2333.5,0.42851]
[1725978430722,0.81487,2333.8,2333.4,0.83332]
[1725978430917,0.81487,2333.8,2333.5,0.42851]
[1725978431121,0.42848,2333.7,2333.4,0.83333]
[1725978431324,0.3864,2333.8,2333.3,0.3714]
[1725978431512,0.42852,2333.5,2333.1,0.42857]
[1725978431709,0.42854,2333.4,2333.0,0.3981]
[1725978431918,0.3818,2333.7,2333.1,0.42858]
[1725978432109,0.3818,2333.7,2333.0,0.3981]
[1725978432318,0.42854,2333.4,2333.1,0.42858]
[1725978432716,0.3818,2333.7,2333.0,0.3981]
[1725978432920,0.42856,2333.3,2333.0,0.8267]
[1725978433217,0.3818,2333.7,2333.0,0.3981]
[1725978433424,0.42852,2333.5,2333.2,0.42856]
[1725978434121,0.4285,2333.6,2333.3,0.42854]
[1725978434324,0.4285,2333.6,2333.0,0.3981]
[1725978434522,0.4285,2333.6,2333.3,0.42854]
[1725978435024,0.3864,2333.8,2333.2,3.29]
[1725978435227,0.81486,2333.8,2333.5,0.42851]
[1725978435426,0.81486,2333.8,2333.2,3.29]
[1725978435427,0.42848,2333.7,2333.2,3.29]
[1725978435617,0.3864,2333.8,2333.2,3.29]
[1725978435926,0.3864,2333.8,2333.0,0.3981]
[1725978435927,0.42854,2333.4,2333.1,0.42858]
[1725978436223,1.0712,2333.7,2333.2,0.42857]
[1725978436527,0.42854,2333.4,2333.1,0.42858]
[1725978436822,0.42854,2333.4,2333.2,0.42857]
[1725978437022,0.42856,2333.3,2333.0,0.3981]
[1725978437229,0.3967,2333.6,2333.0,0.3981]
[1725978437434,0.42854,2333.4,2333.1,0.42858]
[1725978437630,0.82521,2333.6,2333.4,0.42853]
[1725978437836,0.82521,2333.6,2333.0,0.3981]
[1725978437837,0.42852,2333.5,2333.2,0.42855]
[1725978438029,0.3864,2333.8,2333.0,0.3981]
[1725978438231,0.3864,2333.8,2333.3,0.42854]
[1725978438232,0.42851,2333.6,2333.3,0.42854]
[1725978438543,0.3864,2333.8,2333.0,0.3981]
[1725978438544,0.42852,2333.5,2333.2,0.42856]
[1725978438730,1.07123,2333.7,2333.0,0.3981]
[1725978438931,0.42855,2333.4,2333.1,0.42857]
[1725978439248,0.42854,2333.4,2333.1,0.42858]
[1725978439538,0.3864,2333.8,2333.3,0.42854]
[1725978439539,1.45758,2333.8,2333.3,0.42854]
[1725978439737,0.42852,2333.5,2333.3,0.42854]
[1725978440037,0.42848,2333.7,2333.0,0.3981]
[1725978440242,0.42852,2333.5,2333.2,3.10856]
[1725978440535,0.42852,2333.5,2333.0,0.3981]
[1725978440536,0.42848,2333.7,2333.0,3.0781]
[1725978440728,0.42859,2333.1,2333.0,3.0781]
[1725978440930,0.7709,2333.4,2333.0,3.5067]
[1725978441135,0.42857,2333.3,2333.0,3.5067]
[1725978441840,0.7709,2333.4,2333.0,2.68]
[1725978442138,0.7709,2333.4,2333.0,3.49211]
[1725978442139,0.42858,2333.2,2333.0,3.49211]
[1725978442331,1.19945,2333.4,2333.1,0.42858]
[1725978442533,0.42856,2333.3,2333.0,3.49209]
[1725978444633,1.19945,2333.4,2333.1,0.42859]
[1725978444838,1.07123,2333.7,2333.2,3.10856]
[1725978445031,0.42854,2333.4,2333.2,2.68]
[1725978445644,0.42855,2333.3,2333.2,2.68]
[1725978446040,0.42861,2333.0,2332.9,0.3821]
[1725978446236,0.42861,2333.0,2332.7,0.42866]
[1725978446540,0.42861,2333.0,2332.6,0.3991]
[1725978446541,0.7821,2333.1,2332.6,0.3991]
[1725978446741,1.07126,2333.6,2333.0,0.4286]
[1725978446946,1.10742942,2333.7,2333.1,2.68]
[1725978446947,0.7821,2333.5,2333.1,2.68]
[1725978447238,0.7821,2333.5,2333.2,1.20216]
[1725978447239,0.42852,2333.5,2333.2,1.20216]
[1725978447644,0.42852,2333.5,2333.2,0.7736]
[1725978447840,0.42852,2333.5,2333.2,1.20216]
[1725978448137,0.42852,2333.5,2333.2,0.7736]
[1725978448339,0.42853,2333.4,2333.2,0.7736]
[1725978448546,0.42854,2333.4,2333.2,0.7736]
[1725978448734,0.42855,2333.3,2333.2,0.7736]
[1725978449341,0.42854,2333.4,2333.2,1.20217]
[1725978449543,0.42854,2333.4,2333.2,0.7736]
[1725978449747,0.42854,2333.4,2333.2,1.20216]
[1725978449942,0.42854,2333.4,2333.2,0.7736]
[1725978450350,0.4285,2333.6,2333.2,0.7736]
[1725978450647,0.4003,2334.0,2333.5,2.68]
[1725978450943,0.4285,2333.6,2333.4,0.42853]
[1725978451145,0.4285,2333.6,2333.3,3.10854]
[1725978451344,11.86444341,2333.9,2333.3,2.68]
[1725978451540,0.42852,2333.5,2333.3,3.10855]
[1725978452036,0.794,2334.0,2333.4,0.42853]
[1725978452234,0.42851,2333.6,2333.4,0.42853]
[1725978452444,12.03868525,2333.9,2333.4,0.42853]
[1725978452639,0.794,2334.0,2333.5,2.68]
[1725978452942,0.794,2334.0,2333.6,0.42849]
[1725978452943,0.42847,2333.8,2333.6,0.42849]
[1725978453139,0.42846,2333.8,2333.6,0.42848]
[1725978453440,1.8651,2334.0,2333.5,2.68]
[1725978453641,0.42849,2333.7,2333.6,0.4285]
[1725978453837,0.42847,2333.8,2333.6,0.4285]
[1725978454142,0.794,2334.0,2333.4,2.68]
[1725978454545,1.10742942,2334.4,2333.9,2.68]
[1725978454740,0.3943,2334.6,2334.2,2.68]
[1725978454937,0.3943,2334.6,2334.3,0.42836]
[1725978455135,0.42835,2334.4,2334.2,3.10838]
[1725978455343,0.42833,2334.5,2334.2,2.68]
[1725978455546,0.42833,2334.5,2334.2,0.42838]
[1725978455744,4.14509,2334.6,2334.0,0.7595]
[1725978455944,0.42838,2334.3,2334.0,1.18792]
[1725978456143,1.07083,2334.5,2334.1,0.4284]
[1725978456341,0.42837,2334.3,2334.1,0.4284]
[1725978456642,0.42839,2334.2,2334.0,1.18791]
[1725978456842,0.42836,2334.4,2334.1,0.4284]
[1725978457434,0.42837,2334.3,2334.0,1.18791]
[1725978457639,2.68,2334.4,2333.9,0.42843]
[1725978457838,1.46511,2334.6,2334.0,0.42841]
[1725978457839,0.42838,2334.3,2334.0,0.42841]
[1725978458244,0.42838,2334.3,2334.1,0.4284]
[1725978458441,0.42838,2334.3,2334.0,0.42842]
[1725978458644,0.3943,2334.6,2334.1,0.42839]
[1725978458645,0.42836,2334.4,2334.1,0.42839]
[1725978458845,0.42837,2334.3,2334.0,3.10842]
[1725978459441,0.42837,2334.3,2334.1,0.4284]
[1725978459750,0.42837,2334.3,2334.0,3.10841]
[1725978459941,0.42839,2334.2,2334.0,3.10841]
[1725978461040,0.42836,2334.4,2334.1,0.4284]
[1725978461245,0.42837,2334.3,2334.1,0.4284]
[1725978461648,0.42837,2334.3,2334.0,3.10841]
[1725978461956,0.42839,2334.2,2334.0,3.10842]
[1725978462259,0.42837,2334.3,2334.1,0.4284]
[1725978462554,0.42836,2334.4,2334.2,0.42838]
[1725978462956,0.42836,2334.4,2334.1,0.42839]
[1725978463155,0.42837,2334.4,2334.1,0.42839]
[1725978463360,1.48142942,2334.7,2334.2,2.68]
[1725978463546,0.374,2334.7,2334.4,0.42834]
[1725978463747,0.80231,2334.7,2334.4,0.42834]
[1725978464045,0.374,2334.7,2334.4,2.68]
[1725978464246,0.374,2334.7,2334.6,0.42831]
[1725978464449,0.8023,2334.7,2334.5,0.42832]
[1725978464855,0.374,2334.7,2334.5,0.42832]
[1725978465247,0.8023,2334.7,2334.5,0.42832]
[1725978466453,1.10742942,2334.9,2334.6,2.68]
[1725978466654,0.42828,2334.8,2334.6,3.10831]
[1725978466861,0.42826,2334.9,2334.7,0.42828]
[1725978467061,0.42828,2334.8,2334.6,3.1083]
[1725978467355,0.42829,2334.7,2334.5,0.42832]
[1725978467556,0.3919,2334.6,2334.5,0.42832]
[1725978467753,0.42829,2334.8,2334.6,0.4283]
[1725978468155,0.42828,2334.8,2334.6,0.4283]
[1725978469555,0.42829,2334.8,2334.6,0.42831]
[1725978469750,2.55134942,2335.0,2334.7,2.68]
[1725978469951,0.7818,2335.3,2334.9,2.68]
[1725978470155,1.20999,2335.3,2335.0,0.42822]
[1725978470463,0.7818,2335.3,2335.1,0.42821]
[1725978470864,1.20998,2335.3,2334.9,3.0841]
[1725978471065,1.20998,2335.3,2335.1,0.42821]
[1725978471256,5.25142942,2335.7,2335.1,2.68]
[1725978471455,5.25142942,2335.7,2335.3,0.42817]
[1725978471456,0.42814,2335.6,2335.3,0.42817]
[1725978471765,0.42815,2335.5,2335.2,0.42819]
[1725978472066,4.57212,2335.7,2335.3,3.10817]
[1725978472265,0.42814,2335.6,2335.3,3.10818]
[1725978472563,0.42813,2335.6,2335.3,2.68]
[1725978472760,0.42815,2335.5,2335.2,3.10819]
[1725978473066,3.75028,2335.7,2335.1,0.42821]
[1725978473263,1.07033,2335.6,2335.0,2.68]
[1725978473453,1.07038,2335.5,2335.0,2.68]
[1725978473658,1.07038,2335.5,2335.0,0.21605731]
[1725978473863,0.42818,2335.4,2335.0,2.89605731]
[1725978474060,0.42818,2335.4,2335.0,3.32428731]
[1725978474264,0.81228,2335.3,2335.0,3.32428731]
[1725978474462,0.3841,2335.3,2335.1,0.42821]
[1725978474964,0.3841,2335.3,2334.8,0.3717]
[1725978474965,0.42823,2335.1,2334.8,0.79997]
[1725978475169,0.42822,2335.1,2334.8,0.79997]
[1725978476261,0.42822,2335.1,2334.9,0.42825]
[1725978476564,0.3841,2335.3,2335.1,0.42821]
[1725978476757,0.3841,2335.3,2335.2,0.4282]
[1725978476955,0.7642,2335.6,2335.0,2.89638271]
[1725978477161,0.42816,2335.5,2335.2,0.4282]
[1725978477466,10.94270831,2335.5,2335.3,0.42817]
[1725978477769,1.56674,2335.6,2335.3,0.42817]
[1725978478470,1.1386,2335.6,2335.2,2.68]
[1725978478659,1.1386,2335.6,2335.4,0.42815]
[1725978479057,0.42815,2335.5,2335.3,0.81088]
[1725978479464,0.7606,2335.6,2335.3,0.3827]
[1725978479667,0.3744,2335.6,2335.3,0.3827]
[1725978479966,0.42808,2335.9,2335.6,0.42812]
[1725978480267,0.7809,2336.0,2335.4,2.68]
[1725978480470,0.42812,2335.7,2335.4,2.68]
[1725978480658,0.42813,2335.6,2335.3,0.81088]
[1725978480855,0.42815,2335.5,2335.3,0.3827]
[1725978481063,0.42815,2335.5,2335.1,0.3948]
[1725978481064,0.42819,2335.3,2335.1,0.3948]
[1725978481270,10.7087579,2335.9,2335.2,2.68]
[1725978481456,11.1096579,2335.7,2335.4,2.68]
[1725978481661,0.4009,2335.7,2335.5,0.3717]
[1725978481964,0.82902,2335.7,2335.5,0.3717]
[1725978482267,0.8013,2335.8,2335.6,0.42813]
[1725978482461,0.3732,2335.8,2335.5,0.79984]
[1725978482656,0.42813,2335.6,2335.5,0.3717]
[1725978482864,0.42812,2335.7,2335.5,0.3717]
[1725978483072,0.3732,2335.8,2335.6,0.42813]
[1725978483263,0.80127,2336.0,2335.7,0.42811]
[1725978483463,4.144,2336.1,2335.6,7.3644]
[1725978483769,0.7464,2336.5,2335.8,2.68]
[1725978483962,0.7464,2336.5,2335.6,0.4028]
[1725978483963,0.7464,2336.5,2336.0,2.68]
[1725978484170,0.7464,2336.5,2336.2,2.68]
[1725978484379,0.7464,2336.5,2336.2,3.10801]
[1725978484572,0.7464,2336.5,2336.2,2.68]
[1725978484866,4.144,2337.0,2336.4,2.68]
[1725978485057,4.144,2337.0,2336.4,3.10797]
[1725978485058,0.7733,2337.0,2336.4,3.10797]
[1725978485263,0.42794,2336.7,2336.4,2.68]
[1725978486469,0.42795,2336.6,2336.3,1.2139]
[1725978487065,0.42794,2336.7,2336.3,0.7859]
[1725978487274,0.42795,2336.6,2336.3,0.7859]
[1725978487459,0.42795,2336.6,2336.3,1.21389]
[1725978488566,10.58065484,2336.9,2336.4,2.68]
[1725978488880,0.42796,2336.5,2336.3,0.3831]
[1725978489175,0.42795,2336.6,2336.3,0.81109]
[1725978489363,10.58065484,2336.9,2336.3,0.81109]
[1725978489364,10.58065484,2336.9,2336.4,3.10797]
[1725978489568,10.58065484,2336.9,2336.4,2.68]
[1725978489878,11.65042484,2336.9,2336.4,2.68]
[1725978490074,11.65042484,2336.9,2336.4,3.10798]
[1725978490273,0.42794,2336.7,2336.4,2.68]
[1725978490480,0.42796,2336.6,2336.3,0.81109]
[1725978490670,0.3842,2336.5,2336.4,0.42798]
[1725978490874,0.81216,2336.5,2336.3,0.3831]
[1725978491371,0.428,2336.3,2336.1,0.42803]
[1725978491576,0.42803,2336.2,2335.9,3.89707]
[1725978491882,0.42803,2336.2,2336.0,0.42805]
[1725978492374,0.42803,2336.2,2335.9,3.469]
[1725978492569,0.42803,2336.2,2335.9,3.89706]
[1725978492875,0.402,2336.4,2336.1,3.10803]
[1725978493174,0.42801,2336.3,2336.1,3.10803]
[1725978493379,0.82998,2336.4,2336.2,0.42802]
[1725978494078,0.82998,2336.4,2336.2,0.42801]
[1725978494275,0.4034,2336.6,2336.4,0.42797]
[1725978494276,0.42795,2336.6,2336.4,0.42797]
[1725978494576,0.42794,2336.7,2336.4,0.42797]
[1725978494769,0.763,2337.0,2336.5,2.68]
[1725978494971,0.763,2337.0,2336.6,2.68]
[1725978495273,1.06962,2337.2,2336.7,0.42792]
[1725978495478,0.42789,2337.0,2336.7,0.42792]
[1725978495679,1.06964,2337.1,2336.6,3.10793]
[1725978495868,0.4279,2336.9,2336.7,0.42793]
[1725978496182,0.4279,2336.9,2336.6,3.10793]
[1725978496379,0.42791,2336.8,2336.6,3.10793]
[1725978496676,0.4279,2336.9,2336.7,0.42793]
[1725978496880,0.4279,2336.9,2336.6,2.68]
[1725978496881,0.4279,2336.9,2336.6,3.10793]
[1725978497076,0.42792,2336.8,2336.6,3.10793]
[1725978497277,1.06964,2337.1,2336.6,3.10793]
[1725978497485,0.4279,2336.9,2336.6,3.10794]
[1725978497681,1.06964,2337.1,2336.6,2.68]
[1725978497682,0.42792,2336.8,2336.6,2.68]
[1725978498373,0.42792,2336.8,2336.5,0.383]
[1725978498374,0.42792,2336.8,2336.5,3.063]
[1725978498574,0.42792,2336.8,2336.6,0.42795]
[1725978498969,0.42792,2336.8,2336.5,3.49096]
[1725978499486,4.28,2336.8,2336.4,0.3892]
[1725978499780,0.42795,2336.6,2336.4,0.3892]
[1725978499975,0.42796,2336.5,2336.4,0.3892]
[1725978501084,1.19954,2336.7,2336.5,0.42796]
[1725978501379,1.06962,2337.2,2336.6,2.68]
[1725978501679,0.42786,2337.1,2336.8,3.1079]
[1725978501881,0.42786,2337.1,2336.9,0.42789]
[1725978502076,0.42788,2337.0,2336.8,3.1079]
[1725978502284,0.42789,2336.9,2336.8,2.68]
[1725978502486,0.42788,2337.0,2336.8,3.1079]
[1725978502674,0.42788,2337.0,2336.8,2.68]
[1725978502875,0.42788,2337.0,2336.8,3.10791]
[1725978503071,0.42789,2336.9,2336.7,0.42792]
[1725978503275,0.42786,2337.1,2336.9,0.42788]
[1725978503489,0.42783,2337.3,2337.1,0.42785]
[1725978503680,0.3941,2337.6,2337.3,0.42781]
[1725978503981,0.7735,2337.8,2337.2,2.68]
[1725978504189,0.42776,2337.7,2337.5,0.42777]
[1725978504482,0.42779,2337.5,2337.3,0.42781]
[1725978504684,1.84287,2337.8,2337.1,0.3974]
[1725978504884,0.42782,2337.3,2337.1,0.82525]
[1725978505083,0.42784,2337.2,2336.9,0.3685]
[1725978505382,0.42784,2337.2,2337.0,0.42786]
[1725978505573,1.84287,2337.8,2336.9,0.3685]
[1725978505574,4.0635,2337.8,2336.9,0.3685]
[1725978505774,4.0635,2337.8,2336.9,0.79638]
[1725978505775,0.42786,2337.1,2336.9,0.79638]
[1725978505978,0.42787,2337.0,2336.9,0.3685]
[1725978506284,0.42786,2337.1,2336.9,0.79639]
[1725978506482,0.42786,2337.1,2336.9,0.79638]
[1725978506678,0.42787,2337.0,2336.9,0.3685]
[1725978506885,0.42787,2337.1,2336.9,0.3685]
[1725978507083,0.4279,2336.9,2336.7,0.42792]
[1725978507580,1.45201,2337.2,2336.6,0.405]
[1725978507886,1.06964,2337.1,2336.7,0.42792]
[1725978508084,1.06964,2337.1,2336.6,0.405]
[1725978508588,0.42792,2336.8,2336.6,0.83293]
[1725978508784,0.4279,2336.9,2336.7,0.42793]
[1725978508985,1.45956,2337.3,2336.9,0.42789]
[1725978508986,0.42787,2337.1,2336.9,0.42789]
[1725978509190,0.42789,2337.0,2336.8,0.4279]
[1725978509489,0.42789,2336.9,2336.8,0.4279]
[1725978509687,0.42789,2336.9,2336.7,0.42791]
[1725978509892,1.06969,2337.0,2336.6,0.405]
[1725978510081,0.42794,2336.7,2336.5,0.3697]
[1725978510280,0.42795,2336.6,2336.5,0.3697]
[1725978510488,0.42795,2336.6,2336.4,0.42797]
[1725978510979,0.42795,2336.6,2336.3,0.3897]
[1725978510980,0.42794,2336.7,2336.5,0.42796]
[1725978511187,0.4279,2336.9,2336.7,0.42792]
[1725978511482,0.42792,2336.8,2336.6,0.42794]
[1725978511692,0.4279,2336.9,2336.7,0.42792]
[1725978511892,0.42791,2336.8,2336.6,0.42793]
[1725978512082,10.94959388,2337.0,2336.5,3.29]
[1725978512285,0.42787,2337.0,2336.8,0.42789]
[1725978512586,0.42787,2337.0,2336.5,4.3599]
[1725978512787,0.42787,2337.0,2336.8,0.42789]
[1725978512988,0.42787,2337.0,2336.5,4.3599]
[1725978513383,0.42787,2337.0,2336.8,0.4279]
[1725978513985,1.19757,2337.1,2336.6,1.06987]
[1725978514183,0.42787,2337.1,2336.7,0.3864]
[1725978514383,0.42787,2337.0,2336.9,0.42789]
[1725978514583,0.394,2337.3,2336.8,0.374]
[1725978514789,0.42784,2337.2,2336.8,3.664]
[1725978515089,0.42785,2337.2,2337.0,0.42786]
[1725978515283,0.394,2337.3,2337.0,0.42786]
[1725978515593,0.42787,2337.0,2336.9,0.42788]
[1725978515888,0.42787,2337.1,2337.0,0.42787]
[1725978516588,1.10742942,2337.7,2337.0,0.42787]
[1725978516589,1.10742942,2337.9,2337.0,13.5692]
[1725978516792,1.10742942,2337.9,2337.3,3.29]
[1725978516793,0.42777,2337.6,2337.3,3.29]
[1725978516995,0.42778,2337.5,2337.3,3.29]
[1725978517287,0.4023,2337.9,2337.0,3.29]
[1725978517288,1.06937,2337.7,2337.0,3.29]
[1725978517491,0.4023,2337.9,2336.8,0.374]
[1725978517788,0.42785,2337.2,2336.8,0.374]